fUST/lending_fUST_20240804
["ID","MTS","AMOUNT","RATE_DAILY","PERIOD"]
[334061207,1722714645351,-183.323756,0.00013962,2]
[334061208,1722714645360,-151.0,0.00013962,2]
[334061209,1722714645370,-151.0,0.00013962,2]
[334061210,1722714645379,-151.0,0.00013962,2]
[334061211,1722714645388,-237.811782,0.00013962,2]
[334061212,1722714645397,-237.811782,0.00013962,2]
[334061213,1722714645407,-174.470306,0.00013962,2]
[334061214,1722714645415,-151.0,0.00013962,2]
[334061215,1722714645428,-10904.1056858,0.00013962,2]
[334061216,1722714645438,-1388.83,0.0001397,2]
[334061217,1722714645447,-525.27,0.0001397,2]
[334061219,1722714645456,-1388.83,0.00013971,2]
[334061220,1722714645465,-1388.83,0.00013971,2]
[334061222,1722714645476,-1388.83,0.00013971,2]
[334061224,1722714645486,-1388.83,0.00013971,2]
[334061225,1722714645495,-1388.83,0.00013971,2]
[334061227,1722714645505,-1388.83,0.00013971,2]
[334061228,1722714645525,-1388.83,0.00013971,2]
[334061230,1722714645536,-1388.83,0.00013971,2]
[334061232,1722714645546,-1388.83,0.00013971,2]
[334061233,1722714645555,-1388.83,0.00013971,2]
[334061234,1722714645566,-525.27,0.00013971,2]
[334061235,1722714645576,-525.27,0.00013971,2]
[334061236,1722714645585,-525.27,0.00013971,2]
[334061237,1722714645595,-525.27,0.00013971,2]
[334061238,1722714645605,-525.27,0.00013971,2]
[334061239,1722714645615,-525.27,0.00013971,2]
[334061240,1722714645624,-525.27,0.00013971,2]
[334061241,1722714645633,-525.27,0.00013971,2]
[334061242,1722714645644,-525.27,0.00013971,2]
[334061243,1722714645653,-525.27,0.00013971,2]
[334061244,1722714645663,-500.0,0.00013972,2]
[334061245,1722714645672,-500.0,0.00013972,2]
[334061246,1722714645682,-662.5,0.00013972,2]
[334061247,1722714645691,-151.0,0.00013972,2]
[334061248,1722714645701,-151.0,0.00013972,2]
[334061249,1722714645710,-151.0,0.00013972,2]
[334061250,1722714645720,-151.0,0.00013972,2]
[334061251,1722714645730,-500.0,0.00013972,2]
[334061252,1722714645739,-500.0,0.00013972,2]
[334061253,1722714645749,-500.0,0.00013972,2]
[334061254,1722714645765,-151.355207,0.00013972,2]
[334061255,1722714645773,-500.0,0.00013972,2]
[334061256,1722714645783,-500.0,0.00013972,2]
[334061257,1722714645792,-151.0,0.00013972,2]
[334061258,1722714645802,-500.0,0.00013972,2]
[334061259,1722714645811,-500.0,0.00013972,2]
[334061260,1722714645820,-151.0,0.00013972,2]
[334061261,1722714645830,-151.0,0.00013972,2]
[334061262,1722714645839,-569.51,0.00013972,2]
[334061263,1722714645848,-151.0,0.00013972,2]
[334061264,1722714645857,-151.0,0.00013972,2]
[334061265,1722714645867,-151.0,0.00013972,2]
[334061266,1722714645876,-500.0,0.00013972,2]
[334061267,1722714645885,-151.259361,0.00013972,2]
[334061268,1722714645895,-500.0,0.00013972,2]
[334061269,1722714645905,-500.0,0.00013972,2]
[334061270,1722714645914,-500.0,0.00013972,2]
[334061271,1722714645926,-500.0,0.00013972,2]
[334061272,1722714645936,-500.0,0.00013972,2]
[334061273,1722714645947,-330.347178,0.00013972,2]
[334061274,1722714645957,-330.347178,0.00013972,2]
[334061275,1722714645969,-330.347178,0.00013972,2]
[334061276,1722714645979,-330.347178,0.00013972,2]
[334061277,1722714645989,-330.347178,0.00013972,2]
[334061278,1722714646002,-330.347178,0.00013972,2]
[334061279,1722714646019,-500.0,0.00013972,2]
[334061280,1722714646029,-500.0,0.00013972,2]
[334061281,1722714646038,-500.0,0.00013972,2]
[334061282,1722714646047,-500.0,0.00013972,2]
[334061283,1722714646056,-500.0,0.00013972,2]
[334061284,1722714646066,-151.0,0.00013972,2]
[334061285,1722714646075,-151.0,0.00013972,2]
[334061286,1722714646173,-500.0,0.00013972,2]
[334061287,1722714646182,-500.0,0.00013972,2]
[334061288,1722714646192,-252.66085,0.00013972,2]
[334061289,1722714646201,-252.66085,0.00013972,2]
[334061290,1722714646211,-500.0,0.00013972,2]
[334061291,1722714646219,-252.66085,0.00013972,2]
[334061292,1722714646229,-252.66085,0.00013972,2]
[334061293,1722714646238,-946.99,0.00013972,2]
[334061294,1722714646248,-500.0,0.00013972,2]
[334061295,1722714646257,-696.27,0.00013972,2]
[334061296,1722714646268,-151.0,0.00013972,2]
[334061297,1722714646277,-217.515381,0.00013972,2]
[334061298,1722714646286,-500.0,0.00013972,2]
[334061299,1722714646297,-500.0,0.00013972,2]
[334061300,1722714646307,-500.0,0.00013972,2]
[334061301,1722714646318,-500.0,0.00013972,2]
[334061302,1722714646328,-500.0,0.00013972,2]
[334061303,1722714646339,-747.98,0.00013972,2]
[334061304,1722714646349,-2535.72,0.00013972,2]
[334061305,1722714646360,-500.0,0.00013972,2]
[334061306,1722714646369,-1345.23,0.00013972,2]
[334061307,1722714646380,-203.83474694,0.00013972,2]
[334061308,1722714646391,-500.0,0.00013972,2]
[334061309,1722714646400,-500.0,0.00013972,2]
[334061310,1722714646409,-500.0,0.00013972,2]
[334061311,1722714646418,-500.0,0.00013972,2]
[334061312,1722714646428,-660.91,0.00013972,2]
[334061313,1722714646442,-500.0,0.00013972,2]
[334061314,1722714646452,-500.0,0.00013972,2]
[334061315,1722714646462,-500.0,0.00013972,2]
[334061316,1722714646472,-151.0,0.00013972,2]
[334061317,1722714646482,-151.0,0.00013972,2]
[334061318,1722714646492,-367.828923,0.00013972,2]
[334061319,1722714646501,-367.828923,0.00013972,2]
[334061320,1722714646514,-367.828923,0.00013972,2]
[334061321,1722714646524,-500.0,0.00013972,2]
[334061322,1722714646533,-367.828923,0.00013972,2]
[334061323,1722714646542,-183.323756,0.00013972,2]
[334061324,1722714646551,-183.323756,0.00013972,2]
[334061325,1722714646560,-151.0,0.00013972,2]
[334061326,1722714646570,-183.323756,0.00013972,2]
[334061327,1722714646579,-183.323756,0.00013972,2]
[334061328,1722714646588,-500.0,0.00013972,2]
[334061329,1722714646597,-500.0,0.00013972,2]
[334061330,1722714646606,-500.0,0.00013972,2]
[334061331,1722714646615,-500.0,0.00013972,2]
[334061332,1722714646623,-500.0,0.00013972,2]
[334061333,1722714646632,-500.0,0.00013972,2]
[334061334,1722714646643,-500.0,0.00013972,2]
[334061335,1722714646651,-500.0,0.00013972,2]
[334061336,1722714646660,-151.0,0.00013972,2]
[334061337,1722714646669,-500.0,0.00013972,2]
[334061338,1722714646678,-2011.14,0.00013972,2]
[334061339,1722714646687,-500.0,0.00013972,2]
[334061340,1722714646696,-500.0,0.00013972,2]
[334061341,1722714646705,-151.0,0.00013972,2]
[334061342,1722714646714,-151.0,0.00013972,2]
[334061343,1722714646723,-500.0,0.00013972,2]
[334061344,1722714646732,-539.28,0.00013972,2]
[334061345,1722714646741,-151.0,0.00013972,2]
[334061346,1722714646749,-161.95589257,0.00013972,2]
[334061347,1722714646759,-500.0,0.00013972,2]
[334061348,1722714646768,-500.0,0.00013972,2]
[334061349,1722714646778,-780.79,0.00013972,2]
[334061350,1722714646788,-1496.18,0.00013972,2]
[334061351,1722714646798,-237.811782,0.00013972,2]
[334061352,1722714646807,-500.0,0.00013972,2]
[334061353,1722714646816,-237.811782,0.00013972,2]
[334061354,1722714646825,-500.0,0.00013972,2]
[334061355,1722714646834,-500.0,0.00013972,2]
[334061356,1722714646843,-500.0,0.00013972,2]
[334061357,1722714646852,-500.0,0.00013972,2]
[334061358,1722714646862,-500.0,0.00013972,2]
[334061359,1722714646871,-500.0,0.00013972,2]
[334061360,1722714646880,-500.0,0.00013972,2]
[334061362,1722714646889,-500.0,0.00013972,2]
[334061364,1722714646900,-500.0,0.00013972,2]
[334061366,1722714646909,-540.64,0.00013972,2]
[334061368,1722714646918,-500.0,0.00013972,2]
[334061370,1722714646928,-500.0,0.00013972,2]
[334061371,1722714646937,-500.0,0.00013972,2]
[334061372,1722714646946,-500.0,0.00013972,2]
[334061373,1722714646956,-500.0,0.00013972,2]
[334061374,1722714646966,-500.0,0.00013972,2]
[334061376,1722714646975,-500.0,0.00013972,2]
[334061377,1722714646984,-647.08,0.00013972,2]
[334061378,1722714646993,-500.0,0.00013972,2]
[334061379,1722714647002,-500.0,0.00013972,2]
[334061380,1722714647012,-500.0,0.00013972,2]
[334061381,1722714647021,-500.0,0.00013972,2]
[334061382,1722714647030,-500.0,0.00013972,2]
[334061383,1722714647039,-483.25628062,0.00013972,2]
[334061384,1722714647048,-500.0,0.00013972,2]
[334061385,1722714647058,-500.0,0.00013972,2]
[334061386,1722714647068,-500.0,0.00013972,2]
[334061387,1722714647077,-500.0,0.00013972,2]
[334061388,1722714647086,-500.0,0.00013972,2]
[334061389,1722714647097,-500.0,0.00013972,2]
[334061391,1722714647106,-500.0,0.00013972,2]
[334061393,1722714647115,-151.0,0.00013972,2]
[334061394,1722714647124,-500.0,0.00013972,2]
[334061395,1722714647133,-151.0,0.00013972,2]
[334061397,1722714647142,-2409.55,0.00013972,2]
[334061399,1722714647152,-500.0,0.00013972,2]
[334061400,1722714647161,-799.8,0.00013972,2]
[334061402,1722714647170,-151.0,0.00014236,2]
[334061404,1722714647178,-151.0,0.00014236,2]
[334061405,1722714647188,-151.0,0.00014236,2]
[334061406,1722714647196,-151.0,0.00014236,2]
[334061407,1722714647205,-151.0,0.00014236,2]
[334061408,1722714647215,-10904.1056858,0.00014236,2]
[334061409,1722714647224,-1388.83,0.00014245,2]
[334061410,1722714647233,-525.27,0.00014245,2]
[334061412,1722714647243,-2375.96355133,0.00014245,5]
[334061413,1722714647253,-500.0,0.00014246,2]
[334061415,1722714647263,-662.5,0.00014246,2]
[334061416,1722714647272,-500.0,0.00014246,2]
[334061417,1722714647281,-500.0,0.00014246,2]
[334061418,1722714647290,-500.0,0.00014246,2]
[334061419,1722714647299,-500.0,0.00014246,2]
[334061420,1722714647308,-500.0,0.00014246,2]
[334061422,1722714647317,-500.0,0.00014246,2]
[334061424,1722714647326,-569.51,0.00014246,2]
[334061426,1722714647336,-500.0,0.00014246,2]
[334061428,1722714647346,-500.0,0.00014246,2]
[334061430,1722714647355,-500.0,0.00014246,2]
[334061432,1722714647364,-500.0,0.00014246,2]
[334061434,1722714647373,-330.347178,0.00014246,2]
[334061436,1722714647383,-330.347178,0.00014246,2]
[334061437,1722714647393,-500.0,0.00014246,2]
[334061439,1722714647403,-500.0,0.00014246,2]
[334061442,1722714647413,-500.0,0.00014246,2]
[334061443,1722714647422,-151.0,0.00014246,2]
[334061444,1722714647435,-500.0,0.00014246,2]
[334061445,1722714647444,-252.66085,0.00014246,2]
[334061446,1722714647454,-252.66085,0.00014246,2]
[334061447,1722714647463,-946.99,0.00014246,2]
[334061448,1722714647474,-644.19727112,0.00014246,2]
[334061449,1722714647483,-696.27,0.00014246,2]
[334061450,1722714647492,-613.84531931,0.00014246,2]
[334061451,1722714647502,-500.0,0.00014246,2]
[334061452,1722714647517,-500.0,0.00014246,2]
[334061453,1722714647526,-500.0,0.00014246,2]
[334061454,1722714647535,-747.98,0.00014246,2]
[334061455,1722714647543,-2535.72,0.00014246,2]
[334061456,1722714647552,-500.0,0.00014246,2]
[334061457,1722714647561,-1345.23,0.00014246,2]
[334061458,1722714647570,-500.0,0.00014246,2]
[334061460,1722714647579,-500.0,0.00014246,2]
[334061462,1722714647588,-660.91,0.00014246,2]
[334061464,1722714647597,-500.0,0.00014246,2]
[334061466,1722714647607,-399.42227963,0.00014246,2]
[334061468,1722714647616,-151.0,0.00014246,2]
[334061470,1722714647626,-367.828923,0.00014246,2]
[334061471,1722714647635,-500.0,0.00014246,2]
[334061472,1722714647644,-367.828923,0.00014246,2]
[334061473,1722714647653,-183.323756,0.00014246,2]
[334061474,1722714647662,-151.0,0.00014246,2]
[334061475,1722714647672,-183.323756,0.00014246,2]
[334061476,1722714647681,-500.0,0.00014246,2]
[334061478,1722714647690,-500.0,0.00014246,2]
[334061480,1722714647700,-500.0,0.00014246,2]
[334061482,1722714647709,-500.0,0.00014246,2]
[334061484,1722714647719,-151.0,0.00014246,2]
[334061486,1722714647728,-2011.14,0.00014246,2]
[334061487,1722714647737,-500.0,0.00014246,2]
[334061489,1722714647746,-500.0,0.00014246,2]
[334061491,1722714647755,-151.0,0.00014246,2]
[334061493,1722714647765,-500.0,0.00014246,2]
[334061495,1722714647774,-539.28,0.00014246,2]
[334061497,1722714647783,-151.0,0.00014246,2]
[334061499,1722714647792,-780.79,0.00014246,2]
[334061501,1722714647802,-1496.18,0.00014246,2]
[334061503,1722714647812,-237.811782,0.00014246,2]
[334061505,1722714647822,-500.0,0.00014246,2]
[334061507,1722714647831,-237.811782,0.00014246,2]
[334061509,1722714647840,-500.0,0.00014246,2]
[334061511,1722714647850,-500.0,0.00014246,2]
[334061513,1722714647860,-500.0,0.00014246,2]
[334061515,1722714647870,-500.0,0.00014246,2]
[334061517,1722714647879,-500.0,0.00014246,2]
[334061519,1722714647889,-500.0,0.00014246,2]
[334061521,1722714647898,-500.0,0.00014246,2]
[334061523,1722714647907,-500.0,0.00014246,2]
[334061525,1722714647918,-540.64,0.00014246,2]
[334061527,1722714647927,-500.0,0.00014246,2]
[334061529,1722714647936,-500.0,0.00014246,2]
[334061531,1722714647946,-500.0,0.00014246,2]
[334061533,1722714647956,-500.0,0.00014246,2]
[334061534,1722714647965,-500.0,0.00014246,2]
[334061535,1722714647975,-500.0,0.00014246,2]
[334061536,1722714647984,-647.08,0.00014246,2]
[334061537,1722714647993,-500.0,0.00014246,2]
[334061538,1722714648003,-500.0,0.00014246,2]
[334061539,1722714648015,-292.53774457,0.00014246,2]
[334061540,1722714648025,-500.0,0.00014246,2]
[334061541,1722714648035,-500.0,0.00014246,2]
[334061542,1722714648045,-500.0,0.00014246,2]
[334061543,1722714648054,-500.0,0.00014246,2]
[334061544,1722714648064,-500.0,0.00014246,2]
[334061545,1722714648073,-500.0,0.00014246,2]
[334061546,1722714648082,-266.05622766,0.00014246,2]
[334061547,1722714648092,-500.0,0.00014246,2]
[334061548,1722714648102,-154.698521,0.00014246,2]
[334061549,1722714648111,-2409.55,0.00014246,2]
[334061550,1722714648122,-500.0,0.00014246,2]
[334061551,1722714648132,-712.5,0.00014247,2]
[334061552,1722714648141,-696.464832,0.00014247,2]
[334061553,1722714648151,-151.0,0.00014247,2]
[334061554,1722714648161,-1364.01399099,0.0001442,2]
[334061555,1722714648171,-151.0,0.00014479,2]
[334061556,1722714648181,-151.0,0.00014479,2]
[334061557,1722714648191,-151.0,0.00014479,2]
[334061558,1722714648200,-151.0,0.000145,2]
[334061559,1722714648210,-10904.1056858,0.000145,2]
[334061560,1722714648220,-525.27,0.00014509,2]
[334061561,1722714648229,-525.27,0.00014509,2]
[334061562,1722714648239,-525.27,0.00014509,2]
[334061563,1722714648333,-525.27,0.00014509,2]
[334061564,1722714648343,-525.4,0.00014509,2]
[334061565,1722714648352,-10904.1056858,0.0001451,2]
[334061566,1722714648362,-1388.83,0.00014518,2]
[334061567,1722714648372,-151.0,0.00014519,2]
[334061568,1722714648381,-1388.83,0.00014519,2]
[334061569,1722714648390,-560.1,0.0001452,2]
[334061570,1722714648402,-662.5,0.0001452,2]
[334061571,1722714648411,-500.0,0.0001452,2]
[334061572,1722714648421,-500.0,0.0001452,2]
[334061573,1722714648434,-500.0,0.0001452,2]
[334061574,1722714648445,-500.0,0.0001452,2]
[334061575,1722714648454,-500.0,0.0001452,2]
[334061576,1722714648464,-500.0,0.0001452,2]
[334061577,1722714648475,-569.51,0.0001452,2]
[334061578,1722714648485,-500.0,0.0001452,2]
[334061579,1722714648495,-500.0,0.0001452,2]
[334061580,1722714648504,-500.0,0.0001452,2]
[334061581,1722714648516,-500.0,0.0001452,2]
[334061582,1722714648526,-500.0,0.0001452,2]
[334061583,1722714648535,-500.0,0.0001452,2]
[334061584,1722714648546,-151.0,0.0001452,2]
[334061585,1722714648556,-252.66085,0.0001452,2]
[334061586,1722714648566,-252.66085,0.0001452,2]
[334061587,1722714648576,-946.99,0.0001452,2]
[334061588,1722714648587,-696.27,0.0001452,2]
[334061589,1722714648597,-500.0,0.0001452,2]
[334061590,1722714648607,-500.0,0.0001452,2]
[334061591,1722714648617,-500.0,0.0001452,2]
[334061592,1722714648627,-747.98,0.0001452,2]
[334061593,1722714648636,-2535.72,0.0001452,2]
[334061594,1722714648646,-500.0,0.0001452,2]
[334061595,1722714648655,-1345.23,0.0001452,2]
[334061596,1722714648664,-500.0,0.0001452,2]
[334061597,1722714648673,-500.0,0.0001452,2]
[334061598,1722714648683,-660.91,0.0001452,2]
[334061599,1722714648692,-500.0,0.0001452,2]
[334061600,1722714648702,-151.0,0.0001452,2]
[334061601,1722714648711,-367.828923,0.0001452,2]
[334061602,1722714648720,-500.0,0.0001452,2]
[334061603,1722714648733,-367.828923,0.0001452,2]
[334061604,1722714648743,-183.323756,0.0001452,2]
[334061605,1722714648752,-151.0,0.0001452,2]
[334061606,1722714648762,-183.323756,0.0001452,2]
[334061607,1722714648771,-500.0,0.0001452,2]
[334061608,1722714648781,-500.0,0.0001452,2]
[334061609,1722714648791,-281.11734793,0.0001452,2]
[334061610,1722714648801,-500.0,0.0001452,2]
[334061611,1722714648812,-151.0,0.0001452,2]
[334061612,1722714648822,-2011.14,0.0001452,2]
[334061613,1722714648831,-500.0,0.0001452,2]
[334061614,1722714648842,-500.0,0.0001452,2]
[334061615,1722714648851,-500.0,0.0001452,2]
[334061616,1722714648861,-539.28,0.0001452,2]
[334061617,1722714648871,-151.0,0.0001452,2]
[334061618,1722714648882,-780.79,0.0001452,2]
[334061619,1722714648891,-1496.18,0.0001452,2]
[334061620,1722714648901,-237.811782,0.0001452,2]
[334061621,1722714648911,-500.0,0.0001452,2]
[334061622,1722714648922,-237.811782,0.0001452,2]
[334061623,1722714648932,-500.0,0.0001452,2]
[334061624,1722714648942,-500.0,0.0001452,2]
[334061625,1722714648951,-500.0,0.0001452,2]
[334061626,1722714648961,-500.0,0.0001452,2]
[334061627,1722714648971,-500.0,0.0001452,2]
[334061628,1722714648980,-500.0,0.0001452,2]
[334061629,1722714648990,-500.0,0.0001452,2]
[334061630,1722714648999,-500.0,0.0001452,2]
[334061631,1722714649008,-540.64,0.0001452,2]
[334061632,1722714649020,-500.0,0.0001452,2]
[334061633,1722714649031,-500.0,0.0001452,2]
[334061634,1722714649040,-500.0,0.0001452,2]
[334061635,1722714649054,-500.0,0.0001452,2]
[334061636,1722714649064,-500.0,0.0001452,2]
[334061637,1722714649074,-500.0,0.0001452,2]
[334061638,1722714649084,-647.08,0.0001452,2]
[334061639,1722714649094,-500.0,0.0001452,2]
[334061640,1722714649104,-500.0,0.0001452,2]
[334061641,1722714649114,-500.0,0.0001452,2]
[334061642,1722714649123,-500.0,0.0001452,2]
[334061643,1722714649132,-500.0,0.0001452,2]
[334061644,1722714649143,-500.0,0.0001452,2]
[334061645,1722714649152,-500.0,0.0001452,2]
[334061646,1722714649163,-2409.55,0.0001452,2]
[334061647,1722714649173,-151.0,0.00014599,2]
[334061648,1722714649182,-151.0,0.00014679,2]
[334061649,1722714649192,-330.347178,0.00014679,2]
[334061650,1722714649203,-330.347178,0.00014679,2]
[334061651,1722714649213,-1388.83,0.00014689,2]
[334061652,1722714649223,-1388.83,0.00014689,2]
[334061653,1722714649233,-1388.83,0.00014689,2]
[334061654,1722714649244,-1388.83,0.00014689,2]
[334061655,1722714649254,-1388.88200723,0.00014689,2]
[334061656,1722714649265,-247.26832392,0.0001469,2]
[334061657,1722714649275,-194.54850496,0.0001469,2]
[334061658,1722714649285,-269.63517677,0.0001469,2]
[334061659,1722714649296,-1091.50397563,0.0001469,2]
[334061660,1722714649307,-816.16582707,0.0001469,2]
[334061661,1722714649318,-286.58862085,0.0001469,2]
[334061662,1722714649327,-151.0,0.0001469,2]
[334061663,1722714649337,-151.0,0.0001469,2]
[334061664,1722714649347,-151.0,0.0001469,2]
[334061665,1722714649356,-151.0,0.0001469,2]
[334061666,1722714649368,-151.0,0.0001469,2]
[334061667,1722714649378,-367.828923,0.0001469,2]
[334061668,1722714649388,-367.828923,0.0001469,2]
[334061669,1722714649399,-594.0,0.000147,2]
[334061670,1722714649411,-10904.1056858,0.00014784,2]
[334061671,1722714649420,-151.0,0.00014793,2]
[334061672,1722714649430,-662.5,0.00014794,2]
[334061673,1722714649445,-500.0,0.00014794,2]
[334061674,1722714649455,-500.0,0.00014794,2]
[334061675,1722714649465,-500.0,0.00014794,2]
[334061676,1722714649475,-500.0,0.00014794,2]
[334061677,1722714649485,-500.0,0.00014794,2]
[334061678,1722714649494,-500.0,0.00014794,2]
[334061679,1722714649504,-569.51,0.00014794,2]
[334061680,1722714649515,-500.0,0.00014794,2]
[334061681,1722714649526,-500.0,0.00014794,2]
[334061682,1722714649537,-434.03124169,0.00014794,2]
[334061683,1722714649546,-500.0,0.00014794,2]
[334061684,1722714649558,-330.347178,0.00014794,2]
[334061685,1722714649568,-330.347178,0.00014794,2]
[334061686,1722714649579,-500.0,0.00014794,2]
[334061687,1722714649588,-500.0,0.00014794,2]
[334061688,1722714649598,-252.66085,0.00014794,2]
[334061689,1722714649608,-252.66085,0.00014794,2]
[334061690,1722714649619,-946.99,0.00014794,2]
[334061691,1722714649629,-696.27,0.00014794,2]
[334061692,1722714649660,-500.0,0.00014794,2]
[334061693,1722714649670,-500.0,0.00014794,2]
[334061694,1722714649679,-500.0,0.00014794,2]
[334061695,1722714649688,-747.98,0.00014794,2]
[334061696,1722714649699,-2535.72,0.00014794,2]
[334061697,1722714649708,-500.0,0.00014794,2]
[334061698,1722714649718,-1345.23,0.00014794,2]
[334061699,1722714649728,-500.0,0.00014794,2]
[334061700,1722714649737,-500.0,0.00014794,2]
[334061701,1722714649747,-660.91,0.00014794,2]
[334061702,1722714649756,-500.0,0.00014794,2]
[334061703,1722714649766,-183.323756,0.00014794,2]
[334061704,1722714649775,-235.900059,0.00014794,2]
[334061705,1722714649784,-183.323756,0.00014794,2]
[334061706,1722714649794,-619.69,0.00014794,2]
[334061707,1722714649803,-408.31613764,0.00014794,2]
[334061708,1722714649813,-500.0,0.00014794,2]
[334061709,1722714649823,-151.0,0.00014794,2]
[334061710,1722714649833,-1666.24765643,0.00014794,2]
[334061711,1722714650204,-375.17816362,0.00014246,2]
[334061712,1722714650218,-424.62183638,0.00014246,2]
[334061713,1722714650304,-799.8,0.0001452,2]
[334061714,1722714650318,-344.89234357,0.00014794,2]
[334061715,1722714650327,-637.27,0.00014794,2]
[334061716,1722714650336,-500.0,0.00014794,2]
[334061717,1722714650345,-500.0,0.00014794,2]
[334061718,1722714650354,-539.28,0.00014794,2]
[334061719,1722714650363,-780.79,0.00014794,2]
[334061720,1722714650372,-1496.18,0.00014794,2]
[334061721,1722714650381,-500.0,0.00014794,2]
[334061722,1722714650390,-237.811782,0.00014794,2]
[334061723,1722714650399,-237.811782,0.00014794,2]
[334061724,1722714650407,-500.0,0.00014794,2]
[334061725,1722714650417,-500.0,0.00014794,2]
[334061726,1722714650426,-420.12118776,0.00014794,2]
[334061727,1722714650492,-273.37336231,9.9e-05,2]
[334061728,1722714650501,-79.87881224,0.00014794,2]
[334061729,1722714650512,-500.0,0.00014794,2]
[334061730,1722714650522,-281.33195401,0.00014794,2]
[334061731,1722714650532,-500.0,0.00014794,2]
[334061732,1722714650541,-500.0,0.00014794,2]
[334061733,1722714650549,-500.0,0.00014794,2]
[334061734,1722714650558,-540.64,0.00014794,2]
[334061735,1722714650567,-500.0,0.00014794,2]
[334061736,1722714650576,-500.0,0.00014794,2]
[334061737,1722714650585,-500.0,0.00014794,2]
[334061738,1722714650594,-500.0,0.00014794,2]
[334061739,1722714650604,-500.0,0.00014794,2]
[334061740,1722714650612,-500.0,0.00014794,2]
[334061741,1722714650622,-647.08,0.00014794,2]
[334061742,1722714650631,-500.0,0.00014794,2]
[334061743,1722714650640,-178.3883937,0.00014794,2]
[334061744,1722714650650,-500.0,0.00014794,2]
[334061745,1722714650658,-500.0,0.00014794,2]
[334061746,1722714650667,-500.0,0.00014794,2]
[334061747,1722714650677,-161.19293525,0.00014794,2]
[334061748,1722714650686,-194.53220478,0.00014794,2]
[334061749,1722714650698,-305.46779522,0.00014794,2]
[334061750,1722714650707,-151.0,0.00014794,2]
[334061751,1722714650717,-15.82769057,0.00014794,2]
[334061752,1722714650728,-1157.0,0.00014794,2]
[334061753,1722714650870,-500.0,0.00013698,2]
[334061754,1722714650879,-500.0,0.00013698,2]
[334061755,1722714650890,-500.0,0.00013972,2]
[334061756,1722714650899,-500.0,0.00014246,2]
[334061757,1722714650908,-1236.72230943,0.00014794,2]
[334061758,1722714650918,-799.8,0.00014794,2]
[334061759,1722714650927,-1826.58709486,0.00015,2]
[334061760,1722714650937,-1000.0,0.00015,15]
[334061761,1722714650947,-1108.72341291,0.00015,2]
[334061762,1722714650957,-154.77557542,0.00015,2]
[334061763,1722714650967,-459.65038958,0.00015,4]
[334061764,1722714650979,-2848.0272935,0.00015,2]
[334061765,1722714650988,-10904.1056858,0.00015048,2]
[334061766,1722714650998,-151.0,0.00015058,2]
[334061767,1722714651010,-151.0,0.00015058,2]
[334061768,1722714651021,-151.0,0.00015058,2]
[334061769,1722714651030,-151.0,0.00015058,2]
[334061770,1722714651039,-252.279816,0.00015058,2]
[334061771,1722714651048,-367.828923,0.00015058,2]